bitfinex/quotes_ETHUSD_20251108
["timestamp","ask_amount","ask_price","bid_price","bid_amount"]
[1762578857471,0.6141312,3447.0,3446.8,2.85117909]
[1762578857770,0.6141312,3446.9,3446.8,2.90124173]
[1762578858069,6.45442881,3447.2,3447.1,2.90098923]
[1762578858573,6.45442881,3447.2,3447.1,0.2334]
[1762578858775,9.4696084,3447.6,3447.2,2.90090174]
[1762578858985,9.4696084,3447.6,3446.5,0.0667]
[1762578859133,9.4696084,3447.6,3447.3,2.90077334]
[1762578859343,9.4696084,3447.6,3447.5,0.2334]
[1762578859752,9.4696084,3447.6,3447.5,0.4668]
[1762578860360,8.1054343,3447.8,3447.5,0.4668]
[1762578860552,8.1054343,3447.8,3446.5,0.0667]
[1762578860752,8.1054343,3447.8,3447.7,0.2334]
[1762578860953,8.1054343,3447.8,3446.5,2.96818654]
[1762578861176,0.405504,3447.7,3446.6,3.13480962]
[1762578861377,0.405504,3447.7,3446.6,0.2334]
[1762578861847,2.90056851,3447.6,3446.6,0.2334]
[1762578862053,0.405504,3447.7,3446.6,0.2334]
[1762578862365,8.1054343,3447.8,3446.6,0.2334]
[1762578862564,8.1054343,3447.3,3446.9,2.90113867]
[1762578862750,8.1054343,3447.3,3447.0,2.90104198]
[1762578862952,8.1054343,3447.3,3447.0,2.9010066]
[1762578863275,8.1054343,3447.3,3446.0,2.90191526]
[1762578863573,5.03629729,3447.1,3447.0,2.90107339]
[1762578864336,5.03629729,3447.3,3446.3,2.90165119]
[1762578864563,2.01133407,3446.4,3446.3,2.90165119]
[1762578864982,0.405504,3447.2,3442.9,0.09999999]
[1762578865167,3.5175717,3446.9,3445.2,0.02902589]
[1762578865371,3.5175717,3446.9,3445.7,2.90216791]
[1762578865657,3.30591522,3447.8,3446.7,2.90131538]
[1762578865856,0.1448,3447.4,3446.8,0.1448]
[1762578866057,0.09077651,3446.7,3445.2,2.9025891]
[1762578866257,0.09077651,3446.7,3446.4,2.90155324]
[1762578866489,0.09077651,3446.7,3446.6,0.1448]
[1762578867680,0.09077651,3446.7,3446.4,3.04636127]
[1762578868001,0.09077651,3446.7,3446.5,2.90149371]
[1762578868208,0.09077651,3446.7,3446.6,3.04621008]
[1762578868961,0.09077651,3446.7,3445.1,2.90762538]
[1762578868962,0.005,3447.9,3445.9,2.90198509]
[1762578869192,0.1983,3447.9,3446.0,0.02901915]
[1762578869371,0.1983,3447.9,3446.1,0.02901831]
[1762578869575,0.1983,3447.9,3447.2,2.9008629]
[1762578869790,0.005,3447.9,3446.1,0.02901831]
[1762578869990,0.60041601,3447.8,3446.2,2.90174685]
[1762578870191,0.60044211,3447.7,3447.2,2.9008999]
[1762578870360,0.60044211,3447.8,3447.2,2.9008999]
[1762578870562,0.005,3447.9,3447.6,2.90056116]
[1762578871094,0.005,3447.9,3447.6,2.44558324]
[1762578871307,0.005,3447.9,3446.2,2.90174685]
[1762578871308,0.005,3447.9,3447.7,2.90043538]
[1762578871795,0.005,3447.9,3447.0,2.90104721]
[1762578871796,0.005,3447.9,3447.8,2.90040025]
[1762578875586,1e-08,3447.9,3447.8,2.90040025]
[1762578875951,0.60365527,3448.7,3448.6,2.89972742]
[1762578876097,0.60365527,3448.7,3448.6,2.57428648]
[1762578876294,0.60365527,3448.7,3448.6,2.53344448]
[1762578877031,0.005,3448.9,3448.8,2.89955926]
[1762578877189,0.61025324,3448.9,3448.8,2.89955926]
[1762578877385,0.005,3448.9,3448.8,2.89955926]
[1762578877582,0.005,3448.9,3448.8,2.92855485]
[1762578877825,1e-08,3448.9,3448.8,2.89955926]
[1762578879008,1e-08,3448.9,3448.8,3.04435926]
[1762578881604,1e-08,3448.9,3448.8,3.00351096]
[1762578883661,0.005,3449.9,3449.8,2.89871876]
[1762578884019,0.005,3449.9,3449.8,3.04351876]
[1762578885246,0.005,3449.9,3449.6,2.8988164]
[1762578885451,0.005,3449.9,3449.8,3.04351876]
[1762578886254,0.005,3449.9,3449.8,2.93805403]
[1762578886412,1.1087,3449.9,3449.8,2.89871876]
[1762578886617,1.87933776,3449.9,3449.8,2.89871876]
[1762578886847,1.41973776,3449.9,3449.8,2.89871876]
[1762578887018,0.005,3449.9,3449.8,2.89871876]
[1762578887434,0.005,3449.9,3449.8,3.04351876]
[1762578889246,0.005,3449.9,3449.8,2.71262566]
[1762578891740,0.005,3449.9,3449.8,2.67586219]
[1762578892576,1e-08,3449.9,3449.8,2.67586219]
[1762578895465,1e-08,3449.9,3449.8,2.67686219]
[1762578895629,0.00200001,3449.9,3449.8,2.67686219]
[1762578901786,0.00200001,3449.9,3449.8,2.64377507]
[1762578903997,3.50200001,3449.9,3449.8,2.64377507]
[1762578904202,0.4828,3450.7,3450.6,2.89804671]
[1762578904500,1.10493961,3450.7,3450.6,2.89804671]
[1762578904801,1.58973961,3450.7,3450.6,2.89804671]
[1762578904998,1.58973961,3450.7,3450.6,2.84804671]
[1762578905172,1.10693961,3450.7,3450.6,2.84804671]
[1762578905376,0.4848,3450.7,3450.6,2.99284671]
[1762578905762,0.1925,3450.9,3450.8,2.89787875]
[1762578906128,0.6773,3450.9,3450.8,2.89787875]
[1762578906603,1.1601,3450.9,3450.8,3.04267875]
[1762578907174,1.1601,3450.9,3450.8,0.1448]
[1762578907398,1.1601,3450.9,3450.4,0.1448]
[1762578907604,0.3373,3450.9,3450.8,2.89787875]
[1762578907899,0.1925,3450.9,3450.4,3.0429804]
[1762578908199,0.4828,3450.8,3450.4,0.1448]
[1762578908401,0.4828,3450.8,3450.7,2.89796273]
[1762578908768,0.9676,3450.8,3450.7,2.89796273]
[1762578909584,0.4848,3450.8,3450.7,2.89796273]
[1762578910193,0.9676,3450.8,3450.7,2.89796273]
[1762578911635,0.02977841,3450.7,3450.6,0.1448]
[1762578911834,0.99737841,3450.7,3450.6,3.04284671]
[1762578912535,0.02977841,3450.7,3450.6,2.92702717]
[1762578912742,0.005,3450.9,3450.8,2.89787875]
[1762578913042,1e-08,3450.9,3450.8,2.89787875]
[1762578913393,1e-08,3450.9,3450.8,3.04267875]
[1762578915225,0.00200001,3450.9,3450.8,3.04267875]
[1762578916533,0.00200001,3450.9,3450.8,2.89787875]
[1762578916715,0.00200001,3450.9,3450.8,3.04267875]
[1762578918952,1.15770001,3450.9,3450.8,3.04267875]
[1762578922232,1.15770001,3450.9,3450.7,2.89796273]
[1762578922477,0.4828,3450.8,3450.6,2.89903074]
[1762578922781,0.4848,3450.7,3450.6,2.89903074]
[1762578923144,3.9676,3450.7,3450.6,2.89903074]
[1762578924059,3.9676,3450.7,3450.6,0.001]
[1762578924245,3.9676,3450.7,3450.6,2.89904671]
[1762578924763,3.9676,3450.7,3450.5,0.1448]
[1762578925001,0.9676,3450.6,3450.5,3.0429307]
[1762578925292,0.4848,3450.6,3450.5,3.0429307]
[1762578925496,3.0,3450.7,3450.6,2.89804671]
[1762578925701,3.0,3450.7,3450.6,3.04284671]
[1762578925853,3.0,3450.7,3449.4,1.03947783]
[1762578925854,0.4828,3450.6,3449.4,1.03947783]
[1762578926055,0.1881,3449.8,3449.5,0.0289897]
[1762578926393,0.4828,3450.6,3450.3,2.89821502]
[1762578926555,0.4828,3450.6,3449.0,2.89939112]
[1762578926956,0.4828,3450.6,3450.4,2.8981575]
[1762578927181,0.4828,3450.6,3449.3,2.89913849]
[1762578927377,0.4848,3450.3,3450.2,2.8983827]
[1762578927788,0.9676,3450.3,3450.2,2.8983827]
[1762578929703,0.9676,3450.3,3449.9,2.89862431]
[1762578929906,0.4828,3450.2,3450.1,2.89840313]
[1762578930268,0.9676,3450.2,3450.1,2.89840313]
[1762578931212,0.405504,3450.1,3448.6,1.03947783]
[1762578931400,0.4848,3448.7,3448.2,2.90000314]
[1762578931563,0.4848,3448.7,3448.6,2.89972742]
[1762578931767,0.9676,3448.7,3448.6,2.89972742]
[1762578932297,0.9676,3448.7,3448.5,2.89973487]
[1762578932524,0.4857,3448.6,3448.1,0.005]
[1762578932728,0.4585,3448.2,3448.1,0.005]
[1762578933089,0.9442,3448.2,3448.1,0.005]
[1762578934024,0.9442,3448.2,3448.1,2.9051479]
[1762578934224,0.9442,3448.2,3448.1,2.9061479]
[1762578936103,0.4585,3448.5,3448.4,2.8798956]
[1762578936308,0.6305,3448.5,3448.4,2.8798956]
[1762578936502,1.089,3448.5,3448.4,2.8798956]
[1762578937519,1.589,3448.5,3448.1,0.006]
[1762578937728,0.4585,3448.2,3448.1,2.9061479]
[1762578938129,0.9442,3448.2,3448.1,2.9061479]
[1762578938335,1.1305,3448.5,3448.4,2.8998956]
[1762578938546,0.6448,3448.5,3448.4,2.8998956]
[1762578938826,1.1033,3448.5,3448.4,2.8998956]
[1762578939138,1.589,3448.5,3448.4,2.8998956]
[1762578939726,0.5,3448.5,3448.4,3.07369455]
[1762578940079,0.4857,3449.8,3449.7,2.89880279]
[1762578940246,0.9442,3449.8,3449.7,2.89880279]
[1762578940867,0.4585,3449.8,3449.7,2.89880279]
[1762578941378,0.1881,3450.0,3449.9,2.89863474]
[1762578941577,0.6738,3450.0,3449.9,2.89863474]
[1762578941728,1.1323,3450.0,3449.9,2.89863474]
[1762578942759,1.1323,3450.0,3449.8,2.89864962]
[1762578942941,0.4884,3449.9,3449.8,2.89864962]
[1762578943260,0.9627,3449.9,3449.8,2.89864962]
[1762578943627,0.9627,3449.9,3448.7,2.89962963]
[1762578943859,0.4743,3449.6,3449.5,2.89897086]
[1762578944266,0.9627,3449.6,3449.5,2.89897086]
[1762578944559,0.4743,3449.6,3449.5,2.89897086]
[1762578946238,0.4884,3449.9,3449.8,2.89871876]
[1762578946462,0.1881,3450.0,3449.9,2.89863474]
[1762578946763,0.4884,3450.4,3450.3,2.89829869]
[1762578947143,0.19010001,3450.9,3450.6,2.89799583]
[1762578947337,0.19010001,3450.9,3450.6,2.89804671]
[1762578947338,0.4743,3450.7,3450.6,2.89804671]
[1762578947740,0.4884,3450.8,3450.7,2.89796273]
[1762578947944,0.19010001,3450.9,3450.7,2.89796273]
[1762578948266,0.67850001,3450.9,3450.8,2.89787875]
[1762578948468,0.66440001,3450.9,3450.8,2.89787875]
[1762578948635,0.00200001,3450.9,3450.8,2.89787875]
[1762578948831,1.14990001,3450.9,3450.5,2.89812688]
[1762578949031,1.14990001,3450.9,3450.7,2.89790996]
[1762578949363,0.4743,3450.8,3450.7,2.89790996]
[1762578949563,0.9627,3450.8,3448.9,2.89947519]
[1762578949756,0.4743,3450.6,3450.1,0.1448]
[1762578950127,0.1448,3450.5,3450.3,2.89824459]
[1762578950335,0.1448,3450.5,3450.4,2.89821469]
[1762578950950,0.18720001,3450.9,3450.6,2.89800539]
[1762578951233,0.4884,3450.8,3450.6,2.89800539]
[1762578951432,0.4743,3450.7,3450.3,3.04308273]
[1762578951669,0.4743,3450.7,3450.3,3.04302586]
[1762578951984,0.4743,3450.4,3450.3,0.1448]
[1762578952131,0.1448,3450.3,3449.6,0.1448]
[1762578952335,0.6332,3450.3,3450.0,2.89849083]
[1762578952757,0.1448,3450.3,3449.9,2.89863073]
[1762578952944,0.1448,3450.3,3450.2,2.8983827]
[1762578953349,0.67560001,3450.9,3450.5,2.89809477]
[1762578953666,0.1448,3450.6,3450.5,2.89809477]
[1762578953979,0.002,3450.8,3450.7,2.89796273]
[1762578959252,0.00200001,3450.9,3450.7,2.89796273]
[1762578959253,1e-08,3450.9,3450.8,2.89787875]
[1762578960290,1e-08,3450.9,3450.8,2.92685753]
[1762578961196,1e-08,3450.9,3450.8,2.89787875]
[1762578963169,1e-08,3450.9,3450.8,2.92685753]
[1762578963480,0.005,3451.9,3451.2,2.89754288]
[1762578963668,1e-08,3451.9,3451.8,2.89703922]
[1762578964083,1e-08,3451.9,3451.8,3.04183922]
[1762578964501,1e-08,3451.9,3451.8,2.89703922]
[1762578966023,0.68730001,3451.9,3450.5,3.76847018]
[1762578966411,0.68730001,3451.9,3451.8,2.89703922]
[1762578966822,0.19410001,3451.9,3451.8,2.89703922]
[1762578967129,1e-08,3451.9,3451.8,2.92600961]
[1762578967424,1e-08,3451.9,3451.8,2.89703922]
[1762578968117,1e-08,3451.9,3451.7,2.89712315]
[1762578968323,0.4932,3451.7,3451.2,2.89747898]
[1762578968492,0.4932,3451.7,3450.6,2.89802509]
[1762578968692,0.4817,3451.6,3450.1,2.89846671]
[1762578968907,0.4817,3451.6,3448.4,2.58669786]
[1762578968908,0.4817,3451.6,3449.6,2.89888682]
[1762578969119,0.4817,3451.6,3450.2,0.1991]
[1762578969306,0.4817,3451.6,3451.1,2.89757083]
[1762578969509,0.4932,3451.2,3451.1,2.89757083]
[1762578970074,0.4932,3451.2,3451.0,2.89764013]
[1762578970075,0.9749,3451.2,3451.0,2.89764013]
[1762578970343,0.4817,3451.2,3451.1,2.89762684]
[1762578970701,0.9749,3451.2,3450.1,2.89846671]
[1762578971026,0.9749,3451.2,3450.9,2.89779477]
[1762578971027,0.4932,3451.0,3450.9,2.89779477]
[1762578971203,0.4817,3451.8,3451.5,2.89725504]
[1762578971637,0.4932,3451.6,3451.5,2.89725504]
[1762578971840,0.9749,3451.6,3451.5,2.89725504]
[1762578972249,0.9749,3451.6,3451.4,2.89731502]
[1762578972445,0.19410001,3451.9,3450.0,2.89855072]
[1762578972446,0.4817,3451.5,3450.0,2.89855072]
[1762578972740,0.4817,3451.5,3450.6,0.001]
[1762578972940,0.4817,3451.5,3451.1,2.89755316]
[1762578973255,0.4817,3451.5,3451.3,2.89739138]
[1762578973554,0.4817,3451.5,3451.4,2.89737497]
[1762578973948,0.4932,3451.5,3451.4,2.89737497]
[1762578974781,0.9749,3451.5,3451.4,2.89737497]
[1762578975976,0.9749,3451.5,3451.2,0.1448]
[1762578976181,0.4932,3451.3,3450.9,2.89779127]
[1762578976382,0.4932,3451.3,3451.1,2.89762389]
[1762578976536,0.4817,3451.8,3451.2,0.02897542]
[1762578976731,0.19610001,3451.9,3450.6,0.001]
[1762578976732,0.4817,3451.7,3450.6,0.001]
[1762578977038,0.4817,3451.7,3451.1,2.89756169]
[1762578977241,0.4817,3451.7,3450.7,2.89796273]
[1762578977640,0.4817,3451.7,3451.3,2.8973956]
[1762578978177,0.4932,3451.4,3451.1,2.89758803]
[1762578978340,0.4932,3451.2,3451.1,2.89758803]
[1762578978538,0.9749,3451.2,3451.1,2.89758803]
[1762578978739,0.4817,3451.6,3451.5,2.89726902]
[1762578979174,0.4932,3451.6,3451.5,2.89726902]
[1762578979470,0.19610001,3451.9,3451.7,2.89709332]
[1762578979652,0.4817,3451.8,3451.7,2.89709332]
[1762578979846,0.19610001,3451.9,3451.8,2.89703922]
[1762578980084,1.17100001,3451.9,3451.8,2.89703922]
[1762578980263,1.17100001,3451.9,3450.7,2.89796273]
[1762578980575,1.17100001,3451.9,3451.8,2.89703922]
[1762578982480,1.17100001,3451.9,3450.6,0.001]
[1762578982680,0.4932,3451.7,3451.6,2.89720709]
[1762578982980,0.9749,3451.7,3451.6,2.89720709]
[1762578983195,0.4932,3451.7,3451.6,2.89720709]
[1762578983410,2.9932,3451.7,3451.6,2.89720709]
[1762578983723,2.9932,3451.7,3450.6,0.001]
[1762578983932,0.4932,3451.5,3450.7,2.89796273]
[1762578984102,0.4932,3451.5,3451.3,2.89745275]
[1762578984434,0.9749,3451.5,3451.3,2.89745275]
[1762578984589,0.4932,3451.4,3451.3,2.89745275]
[1762578984792,0.9749,3451.4,3450.6,0.001]
[1762578984990,0.4932,3451.2,3450.6,0.001]
[1762578985308,2.5,3451.7,3450.6,0.001]
[1762578985505,2.5,3451.7,3451.6,2.89720709]
[1762578986102,2.9932,3451.7,3451.6,2.89720709]
[1762578986836,2.9932,3451.7,3451.6,3.04200709]
[1762578987045,3.4749,3451.7,3451.6,3.04200709]
[1762578987330,3.4749,3451.7,3451.6,0.1448]
[1762578987530,3.4749,3451.7,3451.5,2.89721272]
[1762578987693,0.9749,3451.6,3451.5,2.89721272]
[1762578988700,0.4932,3451.6,3451.5,2.89721272]
[1762578988915,2.5,3451.7,3451.6,2.89720709]
[1762578989416,0.00200001,3451.9,3451.8,8.41654007]
[1762578990509,0.00200001,3451.9,3451.8,9.45398546]
[1762578991303,1e-08,3452.3,3452.2,2.89670355]
[1762578991503,1e-08,3452.9,3452.8,2.89620018]
[1762578991707,0.4817,3454.7,3453.8,2.89536163]
[1762578992744,0.4611,3454.5,3453.8,2.89536163]
[1762578992961,0.005,3454.9,3454.8,2.89452356]
[1762578995050,0.6762,3454.9,3453.6,1.03939861]
[1762578995257,0.4899,3454.7,3453.6,2.89544818]
[1762578995553,0.4899,3454.7,3453.3,5.51950085]
[1762578995723,0.951,3454.7,3454.4,2.89484467]
[1762578996231,0.4899,3454.5,3454.4,2.89484467]
[1762578997347,0.951,3454.5,3454.4,2.89484467]
[1762578998559,0.951,3454.5,3453.9,2.8952778]
[1762578998719,0.4899,3454.3,3454.2,2.89502634]
[1762578999111,0.951,3454.3,3452.3,2.89659183]
[1762578999343,0.4899,3454.1,3452.1,0.005]
[1762578999547,0.144,3453.8,3453.2,0.144]
[1762578999748,0.1813,3453.7,3453.5,2.89557153]
[1762578999950,0.1813,3453.7,3453.2,0.144]
[1762579000209,0.4899,3453.3,3453.2,3.0398647]
[1762579000822,0.4899,3453.3,3453.2,0.144]
[1762579000823,0.951,3453.3,3453.2,0.144]
[1762579001023,0.951,3453.3,3452.9,2.89609605]
[1762579001239,0.951,3453.3,3452.9,3.04089605]
[1762579001455,0.4899,3453.0,3452.9,0.1448]
[1762579001619,0.4899,3453.0,3452.9,2.8961163]
[1762579001819,0.9668,3453.0,3452.9,2.8961163]
[1762579002954,0.9668,3453.0,3452.7,2.89620033]
[1762579003159,0.1813,3453.7,3451.2,2.89851766]
[1762579003160,0.4849,3452.8,3451.2,0.001]
[1762579003322,0.4849,3452.2,3452.1,0.1498]
[1762579003827,0.9618,3452.2,3452.1,3.04656568]
[1762579005016,0.1448,3452.6,3452.4,2.89650088]
[1762579005221,0.4769,3452.5,3452.4,2.89650088]
[1762579005418,0.9618,3452.5,3452.4,2.89650088]
[1762579005654,0.1448,3452.6,3452.5,2.89645184]
[1762579005855,0.9618,3452.5,3452.4,2.89651327]
[1762579006559,0.4849,3452.5,3452.4,2.89651327]
[1762579007057,0.9618,3452.5,3452.1,0.1498]
[1762579007263,0.9618,3452.5,3452.1,3.04658746]
[1762579007264,0.4849,3452.2,3452.1,3.04658746]
[1762579007419,0.9618,3452.2,3452.1,0.005]
[1762579009546,0.9618,3452.2,3452.1,2.90178746]
[1762579009776,1.1066,3452.2,3452.1,2.90178746]
[1762579010366,0.6297,3452.2,3452.1,2.90178746]
[1762579010964,1.1066,3452.2,3452.1,2.90278746]
[1762579011972,1.1066,3452.2,3452.1,0.006]
[1762579012893,1.1066,3452.2,3452.1,2.90278746]
[1762579013890,1.1066,3452.2,3452.1,0.006]
[1762579014196,1.1066,3452.2,3452.1,2.90278746]
[1762579014554,1.1066,3452.2,3452.1,0.006]
[1762579015208,1.512104,3452.2,3452.1,0.006]
[1762579015433,4.40880755,3452.2,3452.1,0.006]
[1762579017210,1.512104,3452.2,3452.1,0.006]
[1762579017428,4.40880755,3452.2,3452.1,0.006]
[1762579018496,1.512104,3452.2,3452.1,0.006]
[1762579019061,4.40880755,3452.2,3452.1,0.006]
[1762579020795,3.30254322,3451.8,3451.7,0.001]
[1762579021006,3.44742715,3451.7,3451.6,0.001]
[1762579021307,4.40922715,3451.7,3451.6,0.001]
[1762579021617,3.30296292,3451.3,3450.6,0.001]
[1762579021805,3.78786292,3451.3,3450.6,2.89898034]
[1762579022013,4.26476292,3451.3,3450.6,0.001]
[1762579022216,3.44784688,3451.2,3450.6,0.001]
[1762579022514,2.8977108,3451.0,3450.6,0.001]
[1762579022724,3.30346673,3450.7,3450.6,0.001]
[1762579022931,3.30346673,3450.7,3450.1,0.005]
[1762579022932,0.884304,3450.3,3450.1,0.005]
[1762579023131,3.3771827,3450.2,3450.1,0.005]
[1762579023451,3.30414719,3449.9,3449.1,0.005]
[1762579023624,0.1448,3449.5,3449.1,2.9042886]
[1762579023827,0.1448,3449.5,3449.1,0.005]
[1762579024123,0.1448,3449.5,3449.4,2.8990549]
[1762579024844,0.4626,3450.4,3450.0,2.89851263]
[1762579025005,0.1448,3450.0,3449.8,2.89870828]
[1762579025210,0.67,3449.9,3449.8,2.89870828]
[1762579025651,0.67,3449.9,3449.4,2.8990549]
[1762579025857,1.1326,3449.9,3449.6,2.89884674]
[1762579026014,1.1326,3449.9,3449.7,2.89878407]
[1762579026561,1.1326,3449.9,3449.5,2.89895886]
[1762579026562,0.1448,3449.7,3449.5,2.89894706]
[1762579026754,0.1448,3449.7,3449.3,2.8991308]
[1762579027125,0.1448,3449.7,3449.6,2.89888682]
[1762579027320,0.1448,3449.7,3449.5,2.89894551]
[1762579027749,0.1448,3449.7,3449.6,2.89888682]
[1762579028249,0.1448,3449.7,3449.2,2.89922151]
[1762579028550,0.1448,3449.7,3449.4,2.89900448]
[1762579029056,0.1448,3449.7,3449.5,2.8989634]
[1762579029214,0.1448,3449.7,3449.1,0.005]
[1762579029411,0.4626,3449.6,3449.1,0.005]
[1762579029614,0.405504,3449.4,3449.1,0.005]
[1762579029939,1.029104,3449.2,3449.1,0.005]
[1762579030356,0.6236,3449.2,3449.1,0.005]
[1762579030563,1.0862,3449.2,3449.1,0.005]
[1762579031071,1.0862,3449.2,3449.1,0.006]
[1762579031274,4.390927,3449.2,3449.1,0.006]
[1762579032647,1.346904,3449.2,3449.1,0.006]
[1762579034253,4.246127,3449.2,3449.1,0.006]
[1762579037906,4.62011222,3449.2,3449.1,0.006]
[1762579038106,4.246127,3449.2,3449.1,0.006]
[1762579038910,4.62011222,3449.2,3449.1,0.006]
[1762579041414,4.246127,3449.2,3449.1,0.006]
[1762579042171,4.61597596,3449.2,3449.1,0.006]
[1762579042370,4.61597596,3449.2,3448.8,0.001]
[1762579042371,3.30497919,3448.9,3448.8,0.001]
[1762579042685,4.15315777,3448.9,3448.8,0.001]
[1762579042887,4.24637919,3448.9,3448.8,0.001]
[1762579045539,4.61575777,3448.9,3448.8,0.001]
[1762579046204,4.24637919,3448.9,3448.8,0.001]
[1762579047310,5.02545343,3448.9,3448.8,0.001]
[1762579047607,4.24637919,3448.9,3448.8,0.001]
[1762579048456,5.02545343,3448.9,3448.8,0.001]
[1762579049441,4.24637919,3448.9,3448.8,0.001]
[1762579050447,4.61346193,3448.9,3448.8,0.001]
[1762579050811,6.00315293,3448.9,3448.8,0.001]
[1762579051040,5.27807883,3448.9,3448.8,0.001]
[1762579051422,4.24637919,3448.9,3448.8,0.001]
[1762579052606,4.97145329,3448.9,3448.8,0.001]
[1762579053409,5.00736996,3448.9,3448.8,0.001]
[1762579053610,6.19678226,3448.9,3448.8,0.001]
[1762579053806,5.79378285,3448.9,3448.8,0.001]
[1762579054443,6.19678226,3448.9,3448.8,0.001]
[1762579054644,5.79378285,3448.9,3448.8,0.001]
[1762579055151,6.19678226,3448.9,3448.8,0.001]
[1762579055373,5.79378285,3448.9,3448.8,0.001]
[1762579055652,4.6493786,3448.9,3448.8,0.001]
[1762579056549,5.00736996,3448.9,3448.8,0.001]
[1762579056847,6.55477362,3448.9,3448.8,0.001]
[1762579057205,5.00736996,3448.9,3448.8,0.001]
[1762579057842,4.64892077,3448.9,3448.8,0.001]
[1762579058043,6.55942654,3448.9,3448.8,0.001]
[1762579058415,5.00691213,3448.9,3448.8,0.001]
[1762579060758,4.64892077,3448.9,3448.8,0.001]
[1762579061854,5.00691213,3448.9,3448.8,0.001]
[1762579062254,4.64892077,3448.9,3448.8,0.001]
[1762579062430,5.00691213,3448.9,3448.8,0.001]
[1762579062831,4.24637919,3448.9,3448.8,0.001]
[1762579070397,2.89947519,3448.9,3448.8,0.001]
[1762579070697,4.45995762,3448.9,3448.8,0.001]
[1762579070888,4.86546162,3448.9,3448.8,0.001]
[1762579071192,3.30497919,3448.9,3448.8,0.001]
[1762579071380,4.86546162,3448.9,3448.8,0.001]
[1762579072572,3.30497919,3448.9,3448.8,0.001]
[1762579072884,4.86632291,3448.9,3448.8,0.001]
[1762579074196,3.30497919,3448.9,3448.8,0.001]
[1762579074402,4.34562228,3448.9,3448.8,0.001]
[1762579077293,3.30497919,3448.9,3448.8,0.001]
[1762579079264,4.08515226,3448.9,3448.8,0.001]
[1762579079469,0.78217307,3449.1,3448.8,0.001]
[1762579079668,3.68150589,3449.1,3448.8,0.001]
[1762579079869,2.89947519,3448.9,3448.8,0.001]
[1762579080180,3.68150589,3449.1,3448.8,0.001]
[1762579080380,2.90133282,3449.1,3448.8,0.001]
[1762579080900,0.002,3449.1,3448.8,0.001]
[1762579081298,2.89947519,3448.9,3448.8,0.001]
[1762579081467,2.89940213,3449.0,3448.8,0.001]
[1762579081665,2.90134042,3449.1,3448.8,0.001]
[1762579082091,2.90130901,3449.1,3448.8,0.001]
[1762579082410,2.90131217,3449.1,3448.8,0.001]
[1762579082704,0.002,3449.1,3448.8,0.001]
[1762579083081,0.1468,3449.1,3448.9,2.89943659]
[1762579083285,0.002,3449.5,3449.4,2.8990549]
[1762579085088,0.002,3449.6,3449.4,2.8990549]
[1762579085298,0.002,3449.6,3449.5,2.89897086]
[1762579085499,0.002,3449.6,3448.8,0.001]
[1762579085726,2.89938087,3449.1,3448.8,0.001]
[1762579085882,2.89947519,3448.9,3448.8,0.001]
[1762579086427,3.96797919,3448.9,3448.8,0.001]
[1762579086727,0.78217307,3449.6,3448.8,0.001]
[1762579086936,0.1448,3449.4,3448.8,0.1458]
[1762579087136,0.002,3449.1,3448.8,0.001]
[1762579087287,0.1448,3448.9,3448.8,0.001]
[1762579087622,3.04427519,3448.9,3448.8,0.001]
[1762579087823,0.1448,3448.9,3448.8,0.001]
[1762579088395,0.1448,3448.9,3448.8,2.90055926]
[1762579088594,0.002,3449.1,3448.8,0.001]
[1762579088827,0.002,3449.1,3448.9,2.89947519]
[1762579089127,0.002,3449.1,3449.0,2.89939112]
[1762579089893,0.002,3449.1,3448.9,2.89947242]
[1762579090296,0.002,3449.1,3448.9,2.89947519]
[1762579090525,0.407504,3449.1,3448.8,0.001]
[1762579090740,2.89947519,3448.9,3448.8,0.001]
[1762579091654,2.899418,3449.0,3448.8,0.001]
[1762579091855,0.002,3449.1,3448.8,0.001]
[1762579092054,2.899404,3449.0,3448.8,0.001]
[1762579092356,3.37027519,3448.9,3448.8,0.001]
[1762579092855,3.83537519,3448.9,3448.8,0.001]
[1762579093226,0.9359,3448.9,3448.8,0.001]
[1762579093561,3.83537519,3448.9,3448.8,0.001]
[1762579094171,4.24087919,3448.9,3448.8,0.001]
[1762579095121,3.83537519,3448.9,3448.8,0.001]
[1762579095322,4.24087919,3448.9,3448.8,0.001]
[1762579095539,5.37054073,3448.9,3448.8,0.001]
[1762579095727,4.24087919,3448.9,3448.8,0.001]
[1762579097562,5.37054073,3448.9,3448.8,0.001]
[1762579097860,4.59036766,3448.9,3448.8,0.001]
[1762579098061,4.24087919,3448.9,3448.8,0.001]
[1762579098586,5.01946238,3448.9,3448.8,0.001]
[1762579099863,4.24087919,3448.9,3448.8,0.001]
[1762579100251,5.01946238,3448.9,3448.8,0.001]
[1762579100671,3.77577919,3448.9,3448.8,0.001]
[1762579103746,3.37027519,3448.9,3448.8,0.001]
[1762579104287,3.83537519,3448.9,3448.8,0.001]
[1762579105590,4.24087919,3448.9,3448.8,0.001]
[1762579111321,8.63374096,3448.9,3448.8,0.001]
[1762579111477,6.94394164,3448.5,3448.4,0.001]
[1762579111673,6.94394164,3448.5,3448.1,0.005]
[1762579111674,3.7763678,3448.2,3448.1,1e-08]
[1762579111874,8.28559793,3448.2,3448.1,1e-08]
[1762579112088,8.63432957,3448.2,3448.1,1e-08]
[1762579112290,8.28559793,3448.2,3448.1,1e-08]
[1762579112493,2.90103797,3447.1,3446.3,2.83726217]
[1762579112784,4.04413013,3447.4,3446.1,0.005]
[1762579112982,3.09206856,3447.3,3446.1,0.005]
[1762579113195,0.405504,3447.2,3446.1,0.005]
[1762579113402,3.79617298,3447.2,3446.1,0.005]
[1762579113634,0.405504,3447.0,3446.1,0.005]
[1762579113834,2.90150366,3446.5,3446.1,0.005]
[1762579114007,2.90147325,3446.6,3446.1,0.005]
[1762579114346,2.9012873,3446.8,3446.1,0.005]
[1762579114502,2.90143617,3446.6,3446.1,0.005]
[1762579115126,2.9012873,3446.8,3446.1,0.005]